Cogmind - Beta 16 @@@ ROGUE MODE // 2026.01.08 @ 17:58:55 Player: Lunishko Result: Destroyed by G-34 Mercenary with Small Laser Performance ------------- Evolutions (1) 500 Regions Visited (2) 400 Robots Destroyed (54) 270 Value Destroyed (1525) 1525 Prototype IDs (0) 0 Alien Tech Used (0) 0 Bonus (49) 49 TOTAL SCORE: 2744 Bonus ------- High Alert Combat Kills 49 Cogmind --------- Core Integrity 0/400 Matter 295/300 Energy 99/100 System Corruption 0% Temperature Cool (6) Movement Core (300) Ox5 Location -9/Materials Parts ------- > --- POWER (1) -------- (None) > --- PROPULSION (2) --- (None) > --- UTILITY (4) ------ Medium Storage Unit Structural Scanner Signal Interpreter Recalibrator > --- WEAPON (2) ------- Heavy Hammer Heavy Hammer > --- INVENTORY (10) --- Assault Rifle Rocket Launcher Rocket Launcher Datajack Mining Laser Peak State ------------ > --- POWER ------------ Light Ion Engine > --- PROPULSION ------- Wheel Wheel > --- UTILITY ---------- Medium Storage Unit Structural Scanner Signal Interpreter Hacking Suite > --- WEAPON ----------- Heavy Hammer Heavy Hammer > --- INVENTORY -------- Light Ion Engine Medium Armor Plating Medium Armor Plating Assault Rifle Rocket Launcher Datajack Mining Laser [Rating: 14] Favorites ----------- Power Ion Engine Engine Ion Engine Propulsion Wheel Treads Light Treads Leg Aluminum Leg Wheel Wheel Utility Medium Storage Unit Device Structural Scanner Storage Medium Storage Unit Processor Signal Interpreter Hackware Hacking Suite Protection Medium Armor Plating Weapon Heavy Hammer Energy Gun Medium Laser Ballistic Gun Assault Rifle Launcher Rocket Launcher Impact Weapon Heavy Hammer Build | -11 -10 -9 ------- Run | Yrd Mat Mat Slots Evolved 2 | . . 2 Power . | . . . Propulsion . | . . . Utility 2 | . . 2 Weapon . | . . . Parts Attached 26 | 6 8 12 Power 4 | 1 1 2 Engine 4 | 1 1 2 Core . | . . . Reactor . | . . . Propulsion 8 | 2 2 4 Treads 2 | 2 . . Leg 4 | . . 4 Wheel 2 | . 2 . Hover . | . . . Flight . | . . . Utility 8 | 1 2 5 Device 2 | . . 2 Storage 2 | 1 1 . Processor 1 | . . 1 Hackware 1 | . 1 . Protection 2 | . . 2 Artifact . | . . . Weapon 6 | 2 3 1 Energy Gun 2 | 1 1 . Energy Cannon . | . . . Ballistic Gun 1 | 1 . . Ballistic Cannon . | . . . Launcher 1 | . . 1 Special Weapon . | . . . Impact Weapon 2 | . 2 . Slashing Weapon . | . . . Piercing Weapon . | . . . Special Melee Weapon . | . . . Unidentified Prototypes . | . . . Parts Lost 12 | . 1 11 Power 3 | . . 3 Propulsion 7 | . 1 6 Utility 2 | . . 2 Weapon . | . . . Highest Loss Streak 3 | . 1 3 To Critical Strikes . | . . . Average Backups 5 | . 4 7 Power . | . . . Propulsion . | . . . Utility 1 | . 2 1 Weapon 2 | . . 3 Tool/Special . | . . . Unused Backups 4 | . . 4 Power . | . . . Propulsion 1 | . . 1 Utility . | . . . Weapon 2 | . . 2 Tool/Special 1 | . . 1 Average Slot Usage (%) 84 | . 90 79 Engine 9 | . 14 5 Treads 6 | . 14 . Leg 5 | . . 10 Wheel 8 | . 12 4 Device 5 | . . 9 Storage 12 | . 14 11 Processor 5 | . . 11 Hackware 4 | . 6 3 Energy Gun 3 | . 7 . Ballistic Gun 2 | . 5 . Impact Weapon 18 | . 14 21 Peak Build Rating 14 | 6 12 14 Average Rating 9 | 5 8 11 On Entrance 6 | . 6 12 Avg Prop Armor Cover (%) . | . . . Naked Turns . | . . . Heaviest Build 30 | 14 19 30 Greatest Support 40 | 40 40 20 Greatest Overweight (x) 9 | . . 9 Average Overweight (x) . | . . 1 Largest Inventory Capacity 10 | 8 10 10 Average Capacity 9 | 7 8 10 Most Carried 10 | . 8 10 Average Carried 5 | . 4 7 Final Capacity 10 | 8 10 10 Final Carried 8 | . 8 5 Class Distribution -------------------- 93% | Mutant 6% | Scavenger-Mutant Dominant Class ---------------- Mutant | -10/Materials Mutant | -9/Materials Resources | -11 -10 -9 ----------- Run | Yrd Mat Mat Matter Collected 572 | 159 243 170 Remotely . | . . . Salvage Created 1715 | . 529 1186 Parts 56 | . 13 43 Haulers Intercepted . | . . . Recyclers Shooed 2 | . . 2 Parts Field Recycled . | . . . Retrieved Matter . | . . . Parts Self-Destructed . | . . . Prevented . | . . . Parts Restored . | . . . Kills | -11 -10 -9 ------- Run | Yrd Mat Mat Combat Hostiles Destroyed 40 | . 11 29 Melee 12 | . . 12 Guns 5 | . 5 . AOE 5 | . . 5 Classes Destroyed 10 | . 5 5 Worker 3 | . 1 2 Tunneler 1 | . . 1 Recycler 3 | . 1 2 Mechanic 1 | . . 1 Operator 2 | . 2 . Watcher 4 | . 2 2 Swarmer 7 | . . 7 Grunt 26 | . 11 15 Duelist 2 | . . 2 Sentry 5 | . . 5 Best Kill Streak 8 | . 3 8 Combat Bots Only 8 | . 2 8 Max Kills in Single Turn 2 | . 1 2 Gunslinging . | . . . Exploded 2 | . . 2 Melee 1 | . . 1 Uniques/NPCs Destroyed . | . . . Combat | -11 -10 -9 -------- Run | Yrd Mat Mat Hostile Shots Fired 228 | . 70 158 Missed 58 | . 13 45 Hits 170 | . 57 113 Melee 4 | . . 4 Projectile 166 | . 57 109 Critical Strikes 3 | . . 3 Damage Taken 2243 | . 702 1541 Core 592 | . 186 406 Absorbed by Shields . | . . . Core Remaining (%) 62 | 100 25 . Volleys Fired 39 | . 35 4 Largest 2 | . 2 1 Hottest 115 | . 115 33 Shots Fired 71 | . 67 4 Gun 67 | . 67 . Cannon . | . . . Launcher 4 | . . 4 Special . | . . . Kinetic 27 | . 27 . Thermal 40 | . 40 . Explosive 4 | . . 4 Electromagnetic . | . . . Robot Hit Streak 9 | . 9 8 Robot Miss Streak 5 | . 5 . Penetration Max . | . . . Secondary Targets 1 | . 1 . Max Gunslinging Chain 1 | . 1 . Shots Hit Robots 149 | . 59 90 Core Hits 39 | . 18 21 Critical Kills 3 | . 1 2 Critical Parts Destroyed 12 | . 3 9 Critical Strikes 19 | . 6 13 Burn 2 | . 2 . Smash 17 | . 4 13 Melee Attacks 136 | . 27 109 Impact 136 | . 27 109 Slashing . | . . . Piercing . | . . . Sneak Attacks 12 | . 3 9 Combat Hostiles 1 | . 1 . Follow-up Attacks 20 | . 4 16 Damage Inflicted 4998 | . 1347 3651 Guns 509 | . 509 . Cannons . | . . . Explosions 359 | . . 359 Melee 4128 | . 836 3292 Ramming 2 | . 2 . Kinetic 193 | . 193 . Thermal 316 | . 316 . Explosive 359 | . . 359 Electromagnetic . | . . . Impact 4128 | . 836 3292 Slashing . | . . . Piercing . | . . . Highest Corruption . | . . . Average Corruption . | . . . Corruption Purged . | . . . Corruption Blocked . | . . . Overload Shots . | . . . Overflow Damage 1068 | . 321 747 Projectiles . | . . . Explosions 11 | . . 11 Melee 1057 | . 321 736 Knockbacks 15 | . 7 8 Impact 14 | . 7 7 Kinetic . | . . . Secondary 1 | . . 1 Self-Inflicted Damage 118 | . . 118 Shots 3 | . . 3 Rammed 2 | 1 1 . Targets Rammed 2 | 1 1 . Kicked . | . . . Crushed . | . . . Highest Temperature 406 | . 406 5 Average Temperature 105 | . 107 4 Received Heat Transfer 909 | . 390 519 Effects 2 | . 2 . Shutdowns 1 | . 1 . Energy Bleed 1 | . 1 . Siege Activations . | . . . Martial Activations . | . . . Shielding Activations . | . . . Robots Disrupted . | . . . Combat Hostiles . | . . . Robots Corrupted 23 | . 8 15 Combat Hostiles 17 | . 5 12 Parts Fried 28 | . 8 20 Impact Corruptions 52 | . 16 36 Robots Melted 1 | . 1 . Combat Hostiles 1 | . 1 . Parts Melted 4 | . 4 . Heat Transferred 1036 | . 1036 . Parts Sabotaged . | . . . Parts Stolen . | . . . Parts Stripped . | . . . Power Chain Reactions . | . . . Alert | -11 -10 -9 ------- Run | Yrd Mat Mat Maximum Alert Level 2 | . 1 2 Low Security (%) 76 | 100 99 54 Level 1 15 | . . 30 Level 2 7 | . . 15 Level 3 . | . . . Level 4 . | . . . Level 5 . | . . . High Security . | . . . Max Security . | . . . Peak Influence 546 | . 202 546 Initial 76 | . . 76 Average 152 | . 74 238 Influence Increases 1421 | . 475 946 Destroy 0b10 Robot/C 800 | . 220 580 Destroy 0b10 Robot/NC 70 | . 30 40 Destroy Leader 188 | . 64 124 Successful Hack 27 | . 23 4 Disable Machine 75 | . 45 30 Destroy Structure 36 | . 3 33 Lose Combat Pursuer 225 | . 90 135 Influence Decreases 1027 | . 292 735 Entered New Map 107 | . . 107 Time Decay 650 | . 282 368 Lost Part 120 | . 10 110 Purge Threat 150 | . . 150 Squads Dispatched 6 | . 4 2 Investigation 1 | . 1 . Extermination . | . . . Reinforcement 5 | . 3 2 Assault . | . . . Garrison . | . . . Intercept . | . . . Searches Triggered . | . . . Construction Impeded . | . . . Haulers Reinforced . | . . . Active Scanning Responses . | . . . Cargo Convoy Interrupts . | . . . Stealth | -11 -10 -9 --------- Run | Yrd Mat Mat Distress Signals 4 | . 2 2 Communications Jammed . | . . . Distress Signals . | . . . Times Spotted 71 | . 25 46 Peak Tracking Total 6 | . 4 6 Tactical Retreats 11 | . 4 7 Traps | -11 -10 -9 ------- Run | Yrd Mat Mat Traps Triggered 1 | . 1 . Indirectly . | . . . Trap Hack Attempts . | . . . Triggered . | . . . Disarmed . | . . . Reprogrammed . | . . . Reused . | . . . Traps Extracted . | . . . Installed . | . . . Triggered . | . . . Machines | -11 -10 -9 ---------- Run | Yrd Mat Mat Machines Disabled 5 | . 3 2 Max in Single Turn 1 | . 1 1 Machines Repaired . | . . . Machines Dismantled . | . . . Machines Sabotaged . | . . . Overloaded Fab Kills . | . . . Hacking | -11 -10 -9 --------- Run | Yrd Mat Mat Machines Accessed 7 | . 3 4 Terminals 6 | . 3 3 Fabricators . | . . . Repair Stations . | . . . Recycling Units . | . . . Scanalyzers 1 | . . 1 Garrison Access . | . . . Total Hacks 20 | . 6 14 Successful 13 | . 4 9 Failed 7 | . 2 5 Catastrophic 1 | . . 1 Database Lockouts . | . . . Manual 14 | . 6 8 Terminals 15 | . 6 9 Fabricators . | . . . Repair Stations . | . . . Recycling Units . | . . . Scanalyzers 5 | . . 5 Garrison Access . | . . . Terminal Hacks 3 | . 1 2 Unreport Threat 1 | . . 1 Dispatch Records 1 | . . 1 Zone Layout 1 | . 1 . Fabricator Hacks . | . . . Repair Station Hacks . | . . . Recycling Unit Hacks . | . . . Scanalyzer 4 | . . 4 Retrieve Study 4 | . . 4 Garrison Access Hacks . | . . . Unauthorized Hacks 6 | . 3 3 Terminals 6 | . 3 3 Assimilate 1 | . 1 . Botnet 5 | . 2 3 Fabricators . | . . . Repair Stations . | . . . Recycling Units . | . . . Scanalyzers . | . . . Garrison Access . | . . . Data Cores Recovered . | . . . Used . | . . . Hacking Detections 4 | . 2 2 Full Trace Events . | . . . Feedback Events . | . . . Feedback Blocked . | . . . Robot Schematics Acquired . | . . . Robots Built . | . . . Authchips . | . . . Time . | . . . Total Robot Build Rating . | . . . Part Schematics Acquired . | . . . Parts Built . | . . . Authchips . | . . . Time . | . . . Total Part Build Rating . | . . . Part Studies Acquired 4 | . . 4 Parts Repaired . | . . . Time . | . . . Parts Recycled . | . . . Recycled Matter . | . . . Retrieved Matter . | . . . Retrieved Components . | . . . Parts Scanalyzed . | . . . Part Schematics Acquired . | . . . Parts Damaged . | . . . Bothacking | -11 -10 -9 ------------ Run | Yrd Mat Mat Used RIF Installer . | . . . Robots Hacked . | . . . Non-combat . | . . . Combat . | . . . Robot Hacks Applied . | . . . Relay Couplers Released . | . . . Fabnet Peak Effective % . | . . . Robots Rewired . | . . . Allies Hacked . | . . . Hacks Repelled . | . . . Allies | -11 -10 -9 -------- Run | Yrd Mat Mat Total Allies . | . . . Largest Group . | . . . Highest-Rated Group . | . . . Highest-Rated Ally . | . . . Total Orders . | . . . Ally Attacks . | . . . Total Damage . | . . . Kills . | . . . Allies Corrupted . | . . . Allies Melted . | . . . Intel | -11 -10 -9 ------- Run | Yrd Mat Mat Active Infowar (turns) 500 | . . 500 Structural 500 | . . 500 Robot Analysis Total . | . . . Derelict Logs Recovered . | . . . Drone Launches . | . . . Drone Recoveries . | . . . Exploration | -11 -10 -9 ------------- Run | Yrd Mat Mat Turns Passed 1701 | 101 746 854 Spaces Moved 822 | 60 444 318 Core 49 | 4 . 45 Treads 191 | 56 135 . Legs 149 | . . 149 Wheels 433 | . 309 124 Hover . | . . . Flight . | . . . Fastest Speed 50 | 50 80 80 Average Speed 122 | 152 104 142 Slowest Speed 500 | 160 160 500 Overloaded Moves . | . . . Propulsion Burnouts . | . . . Robots Hopped . | . . . Potential Cave-ins . | . . . Cave-ins Triggered . | . . . Exploration Rate (%) 37 | 5 75 32 Regions Visited 2 Branch Regions . Pre-discovered Areas . | . . . Known Exits Taken . | . . . Unknown Exits Taken 2 | 1 1 . Scrap Searched . | . . . Spaces Dug 1 | . . 1 Terrain Destroyed 36 | . . 36 Melee 1 | . . 1 Projectile . | . . . AOE 35 | . . 35 Terrain Rammed . | . . . Walls Destroyed . | . . . Machines Disabled . | . . . Actions | -11 -10 -9 --------- Run | Yrd Mat Mat Total 1239 | 66 616 557 Wait 210 | . 88 122 Move 821 | 60 443 318 Hop . | . . . Pick Up 22 | . 13 9 Fast Attach 7 | 6 1 . Attach 13 | . 1 12 Detach 1 | . . 1 Swap 9 | . 6 3 Drop 7 | . 5 2 Fire 39 | . 35 4 Melee 109 | . 23 86 Ram . | . . . Kick . | . . . Crush 1 | . 1 . Escape Stasis . | . . . Rewire . | . . . Trap . | . . . Miscellaneous . | . . . Route ------- -11/Scrapyard -10/Materials (discovered 3 exits: *Mat x2 / [*Min]) -9/Materials History --------- Turn | Location | Event 38 | -11/Scrapyard | Discovered new exit (range 13) 102 | -11/Scrapyard | Entered Materials 312 | -10/Materials | Build established: Mutant 465 | -10/Materials | Core integrity fell below 50% 575 | -10/Materials | Discovered new exit (range 12) 698 | -10/Materials | Discovered new exit (range 14) 833 | -10/Materials | Discovered new exit (range 14) 848 | -10/Materials | Entered another Materials area 848 | -9/Materials | Evolved 2 slots: Utility x2 1043 | -9/Materials | Lost 3 parts (1p2n) 1383 | -9/Materials | Core integrity fell below 50% 1406 | -9/Materials | Destroyed 8 combat bots 1581 | -9/Materials | Core integrity fell below 20% 1702 | -9/Materials | Destroyed by G-34 Mercenary with Small Laser Last Messages --------------- 3x Surveillance 6x Transport 1x Reinforcement 01600_ Hvy. Hammer+ follow-up attack on G-34 Mercenary. 01600_ G-34 Mercenary destroyed. 01610_ R-06 Scavenger collects Sml. Laser. 01628_ O-16 Technician: "IFF HANDSHAKE FAILED. SECURING TERMINAL." 01635_ Hvy. Hammer+ follow-up attack on S-10 Pest. 01635_ ALERT: Hostiles spotted, dispatching reinforcements to Terminal M008. 01641_ Lgt. Ion Engine destroyed. 01644_ Hvy. Hammer+ follow-up attack on S-10 Pest. 01644_ Destroyed Flight Unit. 01644_ Destroyed Lgt. Ion Engine. 01644_ S-10 Pest system corrupted by crushing effect. 01644_ Flight Unit fried. 01644_ S-10 Pest destroyed. 01676_ Connecting with Terminal... 01697_ Ion Engine destroyed. 01698_ G-34 Mercenary destroyed. Map ----- +----------------------------------------------------+ | ?????????????????????????????????????????????????? | | ?????????????????????????????????????????????????? | | ?????????????????????????????????????????????????? | | ?????????????????????????????????????????????????? | | ?????????????????????????????????????????????????? | | ?????????????????????????????????????????????????? | | ?????????????????????????????????????????????????? | | ?????????????????????????????????????????????????? | | ?????????????????????????????????????????????????? | | ??????????????????????????? # ##???????????????? | | ??????????????????????????? # ##???????????????? | | ??????????????????????????? + ##???????????????? | | ??????????????????????????? # ##???????????????? | | ??????????????????????????? # # ???????????????? | | ??????????????????????????? # # ???????????????? | | ???????????????????????????## # ???????????????? | | ???????????????????????????## # ???????????????? | | ???????????????????????????## # ???????????????? | | ???????????????????????????## + ???????????????? | | ??????????## ???############# # ???????????????? | | ??????????## ???############# # ??????????????? | | ??????????## ??## ## ###############??? | | ??????????## ## # ##############??? | | ??????????## ## """ = # % ??? | | ??????????## +%""" gg%%+ = ??? | | ??????????## ### """ !@"# ??? | | ??????????## ? ### T# % !##########+#????? | | ????????????????## "###+########## ????? | | ????????????????## # %%% ##??????????? | | ????????????????############% "##??????????? | | ????????????????############ """ T##??????????? | | ??????????????????????????## """"" "##??????????? | | ????????????? ############ """"" ##??????????? | | ???????????? ############## """"" ##??????????? | | ??????????? + """ #########???? | | ??????????? # ]## #???? | | ??????????? ############ ===#???? | | ??????????? + ==[#???? | | ????????????""" """ ############# ### ==[ #??? | | ??????????????" """ # # # ### ##??? | | ?????????????????"""?????????# # #?# #???? | | ????????????????? ??????????# # ######+###???? | | ????????????????? ???????????# # ## ##### | | ?????????????????????????????# %+ ##### | | ?????????????????????????????# # % | | ?????????????????????????????# # ##### | | ?????????????????????????????# # # ##### | | ?????????????????????????????# # ## ## #??? | | ?????????????????????????????####+# *% # #### | | ????????????????????????????????# # ##### | +----------------------------------------------------+ Best States ------------- Heat Dissipation 28 Energy Generation 10 Energy Capacity 250 Matter Stores 300 Matter Capacity 300 Sight Range 16 Terrain Scan Density 10 Armor Coverage 450 Evasion (%) 55 Recoil Reduction 2 Offensive Hacking 10 Item Schematics ----------------- None Robot Schematics ------------------ None Fabricated ------------ Nothing Repaired ---------- Nothing Studied --------- Hvy. Hammer | -9/Materials | Hacked Rocket Launcher | -9/Materials | Hacked Aluminum Leg | -9/Materials | Hacked Mining Laser | -9/Materials | Hacked Alien Tech Used ----------------- None Achievements -------------- None Challenges ------------ None Game ------ Seed QuantumJammingRouter Manual? 0 Play Time 00:22:34 Cumulative 15.8 hours Start 2026.01.08 @ 17:36:36 End 2026.01.08 @ 17:58:55 Sessions 1 Manual Loads 0 Difficulty Rogue Special Mode None Game No. 19 Rogue 19 Adventurer 0 Explorer 0 Win Type - Total 0 Types 0/0/0/0/0/0/0/0/0/0 Lore% 18 Gallery% 12 Achievement% 15 Wizard Run 0 Options --------- Layout 0 ASCII 0 Keyboard 0 Movement Mouse Keybinds 0 Fullscreen 2 Font 36/Smallcaps Map View 76x50 Zoom Use 0% Tactical HUD 1 Map Filters NONE Filters NONE Steam 1 RUN: b33291b7-1cbf-4b8a-9536-40908650cbe8